Workbook

Sheet 開始
B1: このテンプレートについて
B2: このテンプレートを使用して、チャネル マーケティング予算を作成します。
B3: テーブルに各月の予測売上とその他の詳細を入力します。
B4: 合計が自動的に計算され、スパークラインが更新されます。
B5: メモ:
B6: チャネル マーケティング予算ワークシートの列 A に詳細な指示が記載されています。このテキストは意図的に表示されません。テキストを削除するには、列 A を選択し、[削除] を選択します。テキストを再表示するには、列 A を選択し、フォントの色を変更します。
B7: 表の詳細については、表内で Shift キーを押し、F10 キーを押して、[テーブル] オプションを選択し、[代替テキスト] を選択します。

Sheet チャネル マーケティング予算
A1: このワークシートで、チャネル マーケティング予算を作成します。このワークシートのタイトルが右のセルに表示されます。役立つ手順がこの列のセルに表示されます。下向き矢印で開始します。このワークシートのタイトルが右のセルに表示されます。 | B1: チャネル マーケティング予算
A2: 割合と月のラベルがこの行のセル C2 から O2、合計のラベルがセル Q2 に表示されます。 | C2: 割合 | D2: 月 1 | E2: 月 2 | F2: 月 3 | G2: 月 4 | H2: 月 5 | I2: 月 6 | J2: 月 7 | K2: 月 8 | L2: 月 9 | M2: 月 10 | N2: 月 11 | O2: 月 12 | Q2: 合計
A3: 予測売上合計のラベルが右のセルに表示されます。セル D3 から O3 に各月の予測売上を入力します。セル Q3 では合計が自動的に計算されます。 | B3: 予測売上合計 ¥(000) | D3: 750 | E3: 200 | F3: 500 | G3: 1,500 | H3: 1,200 | I3: 1,500 | J3: 1,500 | K3: 1,800 | L3: 2,000 | M3: 2,000 | N3: 2,000 | O3: 2,000 | Q3: =SUM(D3:O3) -> 16,950
A4: 右のセルから始まる担当者テーブルに詳細を入力します。テーブルの最後で各月の担当者合計、セル Q9 で年間の合計が自動的に計算されます。セル S9 のスパークラインが更新されます。次の指示がセル A10 に表示されます。 | B4: 担当者アイテム | C4: 単価 | D4: 月 1 | E4: 月 2 | F4: 月 3 | G4: 月 4 | H4: 月 5 | I4: 月 6 | J4: 月 7 | K4: 月 8 | L4: 月 9 | M4: 月 10 | N4: 月 11 | O4: 月 12
B5: 担当者 (売上合計の %) | D5: =D11+D33+D41+D48 -> 110% | E5: 110% | F5: 110% | G5: 110% | H5: 110% | I5: 110% | J5: 110% | K5: 110% | L5: 85% | M5: 85% | N5: 85% | O5: 85%
B6: 人的資源 - 人数 | C6: 5 | D6: =+$C$6 -> 5 | E6: 5 | F6: 5 | G6: 5 | H6: 5 | I6: 5 | J6: 5 | K6: 5 | L6: 5 | M6: 5 | N6: 5 | O6: 5
B7: 人的資源 - コスト | D7: =$C$6*D6 -> 25.00 | E7: 25.00 | F7: 25.00 | G7: 25.00 | H7: 25.00 | I7: 25.00 | J7: 25.00 | K7: 25.00 | L7: 25.00 | M7: 25.00 | N7: 25.00 | O7: 25.00 | Q7: =SUM('チャネル マーケティング予算'!$D7:$O7) -> 300.00
B8: 手数料 | C8: 0.10% | D8: =D3*$C$8 -> 0.75 | E8: 0.20 | F8: 0.50 | G8: 1.50 | H8: 1.20 | I8: 1.50 | J8: 1.50 | K8: 1.80 | L8: 2.00 | M8: 2.00 | N8: 2.00 | O8: 2.00 | Q8: =SUM('チャネル マーケティング予算'!$D8:$O8) -> 16.95
B9: 担当者合計 ¥(000) | D9: =SUM(D7:D8) -> 25.75 | E9: =SUM(E7:E8) -> 25.20 | F9: 25.50 | G9: 26.50 | H9: 26.20 | I9: 26.50 | J9: 26.50 | K9: 26.80 | L9: 27.00 | M9: 27.00 | N9: 27.00 | O9: 27.00 | Q9: =SUM(Q7:Q8) -> 316.95
A10: 右のセルから始まるダイレクト マーケティング テーブルに詳細を入力します。テーブルの最後で各月のテレマーケティング合計、セル Q17 で年間の合計が自動的に計算されます。セル S17 のスパークラインが更新されます。次の指示がセル A18 に表示されます。 | B10: ダイレクト マーケティング アイテム | C10: 単価 | D10: 月 1 | E10: 月 2 | F10: 月 3 | G10: 月 4 | H10: 月 5 | I10: 月 6 | J10: 月 7 | K10: 月 8 | L10: 月 9 | M10: 月 10 | N10: 月 11 | O10: 月 12
B11: ダイレクト マーケティング (売上合計の %) | D11: 100% | E11: 100% | F11: 75% | G11: 40% | H11: 33% | I11: 25% | J11: 20% | K11: 10% | L11: 5% | M11: 5% | N11: 5% | O11: 5%
B12: テレマーケティング (直接販売の %) | D12: 100% | E12: 50% | F12: 50% | G12: 50% | H12: 50% | I12: 50% | J12: 50% | K12: 50% | L12: 50% | M12: 50% | N12: 50% | O12: 50%
B13: 人的資源 - 人数 | C13: 3 | D13: =$C$13*D12 -> 3 | E13: 1.5 | F13: 1.5 | G13: 1.5 | H13: 1.5 | I13: 1.5 | J13: 1.5 | K13: 1.5 | L13: 1.5 | M13: 1.5 | N13: 1.5 | O13: 1.5 | Q13: =SUM('チャネル マーケティング予算'!$D13:$O13) -> 19.50
B14: インフラストラクチャのサポート | D14: 25 | E14: 10 | F14: 25 | G14: 10 | H14: 25 | I14: 10 | J14: 25 | K14: 10 | L14: 25 | M14: 10 | N14: 25 | O14: 10 | Q14: =SUM('チャネル マーケティング予算'!$D14:$O14) -> 210.00
B15: 手数料 | C15: 0.10% | D15: =$C$15*D3*D11*D12 -> 0.75 | E15: 0.10 | F15: 0.19 | G15: 0.30 | H15: 0.20 | I15: 0.19 | J15: 0.15 | K15: 0.09 | L15: 0.05 | M15: 0.05 | N15: 0.05 | O15: 0.05 | Q15: =SUM('チャネル マーケティング予算'!$D15:$O15) -> 2.16
B16: トレーニング | D16: 25 | E16: 10 | F16: 25 | G16: 10 | H16: 25 | I16: 10 | J16: 25 | K16: 10 | L16: 25 | M16: 10 | N16: 25 | O16: 10 | Q16: =SUM('チャネル マーケティング予算'!$D16:$O16) -> 210.00
B17: テレマーケティング合計 ¥(000) | D17: =SUM(D13:D16) -> 53.75 | E17: =SUM(E13:E16) -> 21.60 | F17: =SUM(F13:F16) -> 51.69 | G17: 21.80 | H17: 51.70 | I17: 21.69 | J17: 51.65 | K17: 21.59 | L17: 51.55 | M17: 21.55 | N17: 51.55 | O17: 21.55 | Q17: =SUM(Q13:Q16) -> 441.66
A18: 右のセルから始まるインターネット マーケティング テーブルに詳細を入力します。テーブルの最後で各月のインターネット マーケティング合計、セル Q24 で年間の合計が自動的に計算されます。セル S24 のスパークラインが更新されます。次の指示がセル A25 に表示されます。 | B18: インターネット マーケティング アイテム | C18: 単価 | D18: 月 1 | E18: 月 2 | F18: 月 3 | G18: 月 4 | H18: 月 5 | I18: 月 6 | J18: 月 7 | K18: 月 8 | L18: 月 9 | M18: 月 10 | N18: 月 11 | O18: 月 12
B19: インターネット マーケティング (直接販売の %) | D19: 25% | E19: 25% | F19: 25% | G19: 25% | H19: 25% | I19: 25% | J19: 25% | K19: 25% | L19: 25% | M19: 25% | N19: 25% | O19: 25%
B20: 人的資源 - 人数 | C20: 1 | D20: =$C$20*D19 -> 0.25 | E20: 0.25 | F20: 0.25 | G20: 0.25 | H20: 0.25 | I20: 0.25 | J20: 0.25 | K20: 0.25 | L20: 0.25 | M20: 0.25 | N20: 0.25 | O20: 0.25 | Q20: =SUM('チャネル マーケティング予算'!$D20:$O20) -> 3.00
B21: Web サイト開発 (1 回限りのコスト) | D21: 500 | Q21: =SUM('チャネル マーケティング予算'!$D21:$O21) -> 500.00
B22: ホスティング | D22: 10 | E22: 10 | F22: 10 | G22: 10 | H22: 10 | I22: 10 | J22: 10 | K22: 10 | L22: 10 | M22: 10 | N22: 10 | O22: 10 | Q22: =SUM('チャネル マーケティング予算'!$D22:$O22) -> 120.00
B23: サポートと保守 | D23: 25 | N23: 25 | Q23: =SUM('チャネル マーケティング予算'!$D23:$O23) -> 50.00
B24: インターネット マーケティング合計 ¥(000) | D24: =SUM(D20:D23) -> 535.25 | E24: =SUM(E20:E23) -> 10.25 | F24: 10.25 | G24: 10.25 | H24: 10.25 | I24: 10.25 | J24: 10.25 | K24: 10.25 | L24: 10.25 | M24: 10.25 | N24: 35.25 | O24: 10.25 | Q24: =SUM(Q20:Q23) -> 673.00
A25: 右のセルから始まるダイレクト メール テーブルに詳細を入力します。テーブルの最後で各月のダイレクト メール合計、セル Q30 で年間の合計が自動的に計算されます。次の指示がセル A31 に表示されます。 | B25: ダイレクト メール アイテム | C25: 単価 | D25: 月 1 | E25: 月 2 | F25: 月 3 | G25: 月 4 | H25: 月 5 | I25: 月 6 | J25: 月 7 | K25: 月 8 | L25: 月 9 | M25: 月 10 | N25: 月 11 | O25: 月 12
B26: ダイレクト メール (直接販売の %)
B27: 人的資源 - コスト | Q27: =SUM('チャネル マーケティング予算'!$D27:$O27) -> 0.00
B28: 材料 | D28: 1000 | E28: 1000 | F28: 1000 | G28: 1000 | H28: 1000 | I28: 1000 | J28: 1000 | K28: 1000 | L28: 1000 | M28: 1000 | N28: 1000 | O28: 1000 | Q28: =SUM('チャネル マーケティング予算'!$D28:$O28) -> 12,000.00
B29: 送料 | D29: 250 | E29: 250 | F29: 250 | G29: 250 | H29: 250 | I29: 250 | J29: 250 | K29: 250 | L29: 250 | M29: 250 | N29: 250 | O29: 250 | Q29: =SUM('チャネル マーケティング予算'!$D29:$O29) -> 3,000.00
B30: ダイレクト メール合計 ¥(000) | D30: =SUM(D27:D29) -> 1,250.00 | E30: =SUM(E27:E29) -> 1,250.00 | F30: 1,250.00 | G30: 1,250.00 | H30: 1,250.00 | I30: 1,250.00 | J30: 1,250.00 | K30: 1,250.00 | L30: 1,250.00 | M30: 1,250.00 | N30: 1,250.00 | O30: 1,250.00 | Q30: =SUM(Q27:Q29) -> 15,000.00
A31: この行のセル D31 から O31 でダイレクト マーケティング合計、セル Q31 で年間の合計が自動的に計算されます。セル S31 のスパークラインが更新されます。 | B31: ダイレクト マーケティング合計 ¥(000) | D31: =SUM(ダイレクトメール[[#Totals],[月 1]],インターネットマーケティング[[#Totals],[月 1]],ダイレクトマーケティング[[#Totals],[月 1]]) -> 1,839.00 | E31: =SUM(ダイレクトメール[[#Totals],[月 2]],インターネットマーケティング[[#Totals],[月 2]],ダイレクトマーケティング[[#Totals],[月 2]]) -> 1,281.85 | F31: =SUM(ダイレクトメール[[#Totals],[月 3]],インターネットマーケティング[[#Totals],[月 3]],ダイレクトマーケティング[[#Totals],[月 3]]) -> 1,311.94 | G31: =SUM(ダイレクトメール[[#Totals],[月 4]],インターネットマーケティング[[#Totals],[月 4]],ダイレクトマーケティング[[#Totals],[月 4]]) -> 1,282.05 | H31: =SUM(ダイレクトメール[[#Totals],[月 5]],インターネットマーケティング[[#Totals],[月 5]],ダイレクトマーケティング[[#Totals],[月 5]]) -> 1,311.95 | I31: =SUM(ダイレクトメール[[#Totals],[月 6]],インターネットマーケティング[[#Totals],[月 6]],ダイレクトマーケティング[[#Totals],[月 6]]) -> 1,281.94 | J31: =SUM(ダイレクトメール[[#Totals],[月 7]],インターネットマーケティング[[#Totals],[月 7]],ダイレクトマーケティング[[#Totals],[月 7]]) -> 1,311.90 | K31: =SUM(ダイレクトメール[[#Totals],[月 8]],インターネットマーケティング[[#Totals],[月 8]],ダイレクトマーケティング[[#Totals],[月 8]]) -> 1,281.84 | L31: =SUM(ダイレクトメール[[#Totals],[月 9]],インターネットマーケティング[[#Totals],[月 9]],ダイレクトマーケティング[[#Totals],[月 9]]) -> 1,311.80 | M31: =SUM(ダイレクトメール[[#Totals],[月 10]],インターネットマーケティング[[#Totals],[月 10]],ダイレクトマーケティング[[#Totals],[月 10]]) -> 1,281.80 | N31: =SUM(ダイレクトメール[[#Totals],[月 11]],インターネットマーケティング[[#Totals],[月 11]],ダイレクトマーケティング[[#Totals],[月 11]]) -> 1,336.80 | O31: =SUM(ダイレクトメール[[#Totals],[月 12]],インターネットマーケティング[[#Totals],[月 12]],ダイレクトマーケティング[[#Totals],[月 12]]) -> 1,281.80 | Q31: =SUM(Q30,Q24,Q17,Q9) -> 16,431.61
A32: 右のセルから始まるエージェント/ブローカー テーブルに詳細を入力します。テーブルの最後で各月のエージェント/ブローカー合計、セル Q39 で年間の合計が自動的に計算されます。セル S39 のスパークラインが更新されます。次の指示がセル A40 に表示されます。 | B32: エージェント/ブローカー アイテム | C32: 単価 | D32: 月 1 | E32: 月 2 | F32: 月 3 | G32: 月 4 | H32: 月 5 | I32: 月 6 | J32: 月 7 | K32: 月 8 | L32: 月 9 | M32: 月 10 | N32: 月 11 | O32: 月 12
B33: エージェント/ブローカー (売上合計の %) | D33: 10% | E33: 10% | F33: 10% | G33: 10% | H33: 10% | I33: 10% | J33: 10% | K33: 10% | L33: 10% | M33: 10% | N33: 10% | O33: 10%
B34: 通信 | D34: 50 | E34: 50 | F34: 50 | G34: 50 | H34: 50 | I34: 50 | J34: 50 | K34: 50 | L34: 50 | M34: 50 | N34: 50 | O34: 50 | Q34: =SUM('チャネル マーケティング予算'!$D34:$O34) -> 600.00
B35: トレーニング | D35: 250.00 | E35: 250.00 | F35: 250.00 | G35: 250.00 | H35: 250.00 | I35: 250.00 | J35: 250.00 | K35: 250.00 | L35: 250.00 | M35: 250.00 | N35: 250.00 | O35: 250.00 | Q35: =SUM('チャネル マーケティング予算'!$D35:$O35) -> 3,000.00
B36: プロモーション | D36: 600.00 | E36: 600.00 | F36: 600.00 | G36: 600.00 | H36: 600.00 | I36: 600.00 | J36: 600.00 | K36: 600.00 | L36: 600.00 | M36: 600.00 | N36: 600.00 | O36: 600.00 | Q36: =SUM('チャネル マーケティング予算'!$D36:$O36) -> 7,200.00
B37: 割引 | C37: 10.00% | D37: =D3*D33*$C$37 -> 7.50 | E37: 2.00 | F37: 5.00 | G37: 15.00 | H37: 12.00 | I37: 15.00 | J37: 15.00 | K37: 18.00 | L37: 20.00 | M37: 20.00 | N37: 20.00 | O37: 20.00 | Q37: =SUM('チャネル マーケティング予算'!$D37:$O37) -> 169.50
B38: 手数料 (エージェントの売上の %) | C38: 10.00% | D38: =D3*D33*$C$38 -> 7.50 | E38: 2.00 | F38: 5.00 | G38: 15.00 | H38: 12.00 | I38: 15.00 | J38: 15.00 | K38: 18.00 | L38: 20.00 | M38: 20.00 | N38: 20.00 | O38: 20.00 | Q38: =SUM('チャネル マーケティング予算'!$D38:$O38) -> 169.50
B39: エージェント/ブローカー合計 ¥(000) | D39: =SUM(D34:D38) -> 915.00 | E39: =SUM(E34:E38) -> 904.00 | F39: 910.00 | G39: 930.00 | H39: 924.00 | I39: 930.00 | J39: 930.00 | K39: 936.00 | L39: 940.00 | M39: 940.00 | N39: 940.00 | O39: 940.00 | Q39: =SUM(Q34:Q38) -> 11,139.00
A40: 右のセルから始まるディストリビューター テーブルに詳細を入力します。テーブルの最後で各月のディストリビューター合計、セル Q46 で年間の合計が自動的に計算されます。セル S46 のスパークラインが更新されます。次の指示がセル A47 に表示されます。 | B40: ディストリビューター アイテム | C40: 単価 | D40: 月 1 | E40: 月 2 | F40: 月 3 | G40: 月 4 | H40: 月 5 | I40: 月 6 | J40: 月 7 | K40: 月 8 | L40: 月 9 | M40: 月 10 | N40: 月 11 | O40: 月 12
B41: ディストリビューター (売上合計の %) | D41: 0% | E41: 0% | F41: 0% | G41: 0% | H41: 0% | I41: 15% | J41: 20% | K41: 40% | L41: 40% | M41: 40% | N41: 40% | O41: 40%
B42: 通信 | D42: 50 | E42: 50 | F42: 50 | G42: 50 | H42: 50 | I42: 50 | J42: 50 | K42: 50 | L42: 50 | M42: 50 | N42: 50 | O42: 50 | Q42: =SUM('チャネル マーケティング予算'!$D42:$O42) -> 600.00
B43: トレーニング | D43: 250.00 | E43: 250.00 | F43: 250.00 | G43: 250.00 | H43: 250.00 | I43: 250.00 | J43: 250.00 | K43: 250.00 | L43: 250.00 | M43: 250.00 | N43: 250.00 | O43: 250.00 | Q43: =SUM(ディストリビューター[[#This Row],[月 1]:[月 12]]) -> 3,000.00
B44: プロモーション | D44: 600.00 | E44: 600.00 | F44: 600.00 | G44: 600.00 | H44: 600.00 | I44: 600.00 | J44: 600.00 | K44: 600.00 | L44: 600.00 | M44: 600.00 | N44: 600.00 | O44: 600.00 | Q44: =SUM(ディストリビューター[[#This Row],[月 1]:[月 12]]) -> 7,200.00
B45: 手数料/割引 (ディストリビューターの売上の %) | C45: 15.00% | D45: =D3*D41*$C$45 -> 0 | E45: 0 | F45: 0 | G45: 0 | H45: 0 | I45: 33.75 | J45: 45 | K45: 108 | L45: 120 | M45: 120 | N45: 120 | O45: 120 | Q45: =SUM(ディストリビューター[[#This Row],[月 1]:[月 12]]) -> 666.75
B46: ディストリビューター合計 ¥(000) | D46: =SUM(D42:D45) -> 900.00 | E46: =SUM(E42:E45) -> 900.00 | F46: 900.00 | G46: 900.00 | H46: 900.00 | I46: 933.75 | J46: 945.00 | K46: 1,008.00 | L46: 1,020.00 | M46: 1,020.00 | N46: 1,020.00 | O46: 1,020.00 | Q46: =SUM(Q42:Q45) -> 11,466.75
A47: 右のセルから始まる小売業者テーブルに詳細を入力します。テーブルの最後で各月の小売業者合計、セル Q53 で年間の合計が自動的に計算されます。セル S53 のスパークラインが更新されます。次の指示がセル A54 に表示されます。 | B47: 小売業者アイテム | C47: 単価 | D47: 月 1 | E47: 月 2 | F47: 月 3 | G47: 月 4 | H47: 月 5 | I47: 月 6 | J47: 月 7 | K47: 月 8 | L47: 月 9 | M47: 月 10 | N47: 月 11 | O47: 月 12
B48: 小売業者 (売上合計の %) | D48: 0% | E48: 0% | F48: 25% | G48: 60% | H48: 67% | I48: 60% | J48: 60% | K48: 50% | L48: 30% | M48: 30% | N48: 30% | O48: 30%
B49: 通信 | D49: 50 | E49: 50 | F49: 50 | G49: 50 | H49: 50 | I49: 50 | J49: 50 | K49: 50 | L49: 50 | M49: 50 | N49: 50 | O49: 50
B50: トレーニング | D50: 250.00 | E50: 250.00 | F50: 250.00 | G50: 250.00 | H50: 250.00 | I50: 250.00 | J50: 250.00 | K50: 250.00 | L50: 250.00 | M50: 250.00 | N50: 250.00 | O50: 250.00 | Q50: =SUM('チャネル マーケティング予算'!$D49:$O49) -> 600.00
B51: プロモーション | D51: 600.00 | E51: 600.00 | F51: 600.00 | G51: 600.00 | H51: 600.00 | I51: 600.00 | J51: 600.00 | K51: 600.00 | L51: 600.00 | M51: 600.00 | N51: 600.00 | O51: 600.00 | Q51: =SUM('チャネル マーケティング予算'!$D50:$O50) -> 3,000.00
B52: 手数料/割引 (小売業者売上の %) | C52: 10.00% | D52: =D3*D48*$C$52 -> 0 | E52: 0 | F52: 12.5 | G52: 90 | H52: 80.4 | I52: 90 | J52: 90 | K52: 90 | L52: 60 | M52: 60 | N52: 60 | O52: 60 | Q52: =SUM('チャネル マーケティング予算'!$D52:$O52) -> 692.90
B53: 小売業者合計 ¥(000) | D53: =SUM(D49:D52) -> 900.00 | E53: =SUM(E49:E52) -> 900.00 | F53: 912.50 | G53: 990.00 | H53: 980.40 | I53: 990.00 | J53: 990.00 | K53: 990.00 | L53: 960.00 | M53: 960.00 | N53: 960.00 | O53: 960.00 | Q53: =SUM(Q50:Q52) -> 4,292.90
A54: 右のセルから始まる顧客獲得およびリテンション テーブルに詳細を入力します。テーブルの最後で各月の CAR 合計、セル Q59 で年間の合計が自動的に計算されます。セル S59 のスパークラインが更新されます。次の指示がセル A60 に表示されます。 | B54: 顧客獲得およびリテンション (CAR) アイテム | C54: 単価 | D54: 月 1 | E54: 月 2 | F54: 月 3 | G54: 月 4 | H54: 月 5 | I54: 月 6 | J54: 月 7 | K54: 月 8 | L54: 月 9 | M54: 月 10 | N54: 月 11 | O54: 月 12
B55: 顧客獲得およびリテンション (CAR)
B56: 人的資源 | D56: 50 | E56: 50 | F56: 50 | G56: 50 | H56: 50 | I56: 50 | J56: 50 | K56: 50 | L56: 50 | M56: 50 | N56: 50 | O56: 50 | Q56: =SUM('チャネル マーケティング予算'!$D56:$O56) -> 600.00
B57: 通信 | D57: 250.00 | E57: 250.00 | F57: 250.00 | G57: 250.00 | H57: 250.00 | I57: 250.00 | J57: 250.00 | K57: 250.00 | L57: 250.00 | M57: 250.00 | N57: 250.00 | O57: 250.00 | Q57: =SUM('チャネル マーケティング予算'!$D57:$O57) -> 3,000.00
B58: プロモーション/クーポン | D58: 600 | E58: 600 | F58: 600 | G58: 600 | H58: 600 | I58: 600 | J58: 600 | K58: 600 | L58: 600 | M58: 600 | N58: 600 | O58: 600 | Q58: =SUM('チャネル マーケティング予算'!$D58:$O58) -> 7,200.00
B59: CAR 合計 ¥(000) | D59: =SUM(D56:D58) -> 900.00 | E59: =SUM(E56:E58) -> 900.00 | F59: 900.00 | G59: 900.00 | H59: 900.00 | I59: 900.00 | J59: 900.00 | K59: 900.00 | L59: 900.00 | M59: 900.00 | N59: 900.00 | O59: 900.00 | Q59: =SUM(Q56:Q58) -> 10,800.00
A60: 右のセルから始まるその他費用テーブルに詳細を入力します。テーブルの最後で各月のその他費用合計、セル Q65 で年間の合計が自動的に計算されます。セル S65 のスパークラインが更新されます。次の指示がセル A67 に表示されます。 | B60: その他の費用アイテム | C60: 割合 | D60: 月 1 | E60: 月 2 | F60: 月 3 | G60: 月 4 | H60: 月 5 | I60: 月 6 | J60: 月 7 | K60: 月 8 | L60: 月 9 | M60: 月 10 | N60: 月 11 | O60: 月 12
B61: その他の費用
B62: 出張費 | D62: 50 | E62: 50 | F62: 50 | G62: 50 | H62: 50 | I62: 50 | J62: 50 | K62: 50 | L62: 50 | M62: 50 | N62: 50 | O62: 50 | Q62: =SUM('チャネル マーケティング予算'!$D62:$O62) -> 600.00
B63: インフラストラクチャ (コンピューター、電話など) | D63: 250.00 | E63: 250.00 | F63: 250.00 | G63: 250.00 | H63: 250.00 | I63: 250.00 | J63: 250.00 | K63: 250.00 | L63: 250.00 | M63: 250.00 | N63: 250.00 | O63: 250.00 | Q63: =SUM('チャネル マーケティング予算'!$D63:$O63) -> 3,000.00
B64: チャネルのサポート | D64: 600 | E64: 600 | F64: 600 | G64: 600 | H64: 600 | I64: 600 | J64: 600 | K64: 600 | L64: 600 | M64: 600 | N64: 600 | O64: 600 | Q64: =SUM('チャネル マーケティング予算'!$D64:$O64) -> 7,200.00
B65: その他の費用合計 ¥(000) | D65: =SUM(D62:D64) -> 900.00 | E65: =SUM(E62:E64) -> 900.00 | F65: 900.00 | G65: 900.00 | H65: 900.00 | I65: 900.00 | J65: 900.00 | K65: 900.00 | L65: 900.00 | M65: 900.00 | N65: 900.00 | O65: 900.00 | Q65: =SUM(Q62:Q64) -> 10,800.00
A67: この行のセル D67 から O67 で [マーケティング予算合計]、セル Q67 で年間の合計が自動的に計算されます。セル S67 のスパークラインが更新されます。 | B67: マーケティング予算合計 | D67: =SUM(その他の費用[[#Totals],[月 1]],自動車[[#Totals],[月 1]],小売業者[[#Totals],[月 1]],ディストリビューター[[#Totals],[月 1]],代理店およびブローカー[[#Totals],[月 1]],D31) -> 6,354.00 | E67: =SUM(その他の費用[[#Totals],[月 2]],自動車[[#Totals],[月 2]],小売業者[[#Totals],[月 2]],ディストリビューター[[#Totals],[月 2]],代理店およびブローカー[[#Totals],[月 2]],E31) -> 5,785.85 | F67: =SUM(その他の費用[[#Totals],[月 3]],自動車[[#Totals],[月 3]],小売業者[[#Totals],[月 3]],ディストリビューター[[#Totals],[月 3]],代理店およびブローカー[[#Totals],[月 3]],F31) -> 5,834.44 | G67: =SUM(その他の費用[[#Totals],[月 4]],自動車[[#Totals],[月 4]],小売業者[[#Totals],[月 4]],ディストリビューター[[#Totals],[月 4]],代理店およびブローカー[[#Totals],[月 4]],G31) -> 5,902.05 | H67: =SUM(その他の費用[[#Totals],[月 5]],自動車[[#Totals],[月 5]],小売業者[[#Totals],[月 5]],ディストリビューター[[#Totals],[月 5]],代理店およびブローカー[[#Totals],[月 5]],H31) -> 5,916.35 | I67: =SUM(その他の費用[[#Totals],[月 6]],自動車[[#Totals],[月 6]],小売業者[[#Totals],[月 6]],ディストリビューター[[#Totals],[月 6]],代理店およびブローカー[[#Totals],[月 6]],I31) -> 5,935.69 | J67: =SUM(その他の費用[[#Totals],[月 7]],自動車[[#Totals],[月 7]],小売業者[[#Totals],[月 7]],ディストリビューター[[#Totals],[月 7]],代理店およびブローカー[[#Totals],[月 7]],J31) -> 5,976.90 | K67: =SUM(その他の費用[[#Totals],[月 8]],自動車[[#Totals],[月 8]],小売業者[[#Totals],[月 8]],ディストリビューター[[#Totals],[月 8]],代理店およびブローカー[[#Totals],[月 8]],K31) -> 6,015.84 | L67: =SUM(その他の費用[[#Totals],[月 9]],自動車[[#Totals],[月 9]],小売業者[[#Totals],[月 9]],ディストリビューター[[#Totals],[月 9]],代理店およびブローカー[[#Totals],[月 9]],L31) -> 6,031.80 | M67: =SUM(その他の費用[[#Totals],[月 10]],自動車[[#Totals],[月 10]],小売業者[[#Totals],[月 10]],ディストリビューター[[#Totals],[月 10]],代理店およびブローカー[[#Totals],[月 10]],M31) -> 6,001.80 | N67: =SUM(その他の費用[[#Totals],[月 11]],自動車[[#Totals],[月 11]],小売業者[[#Totals],[月 11]],ディストリビューター[[#Totals],[月 11]],代理店およびブローカー[[#Totals],[月 11]],N31) -> 6,056.80 | O67: =SUM(その他の費用[[#Totals],[月 12]],自動車[[#Totals],[月 12]],小売業者[[#Totals],[月 12]],ディストリビューター[[#Totals],[月 12]],代理店およびブローカー[[#Totals],[月 12]],O31) -> 6,001.80 | Q67: =SUM(D67:O67) -> 71,813.31
